{"text_format":"1","workbook":"xlsx","n_sheets":13,"sheets":["Cover","Purpose of spreadsheet","Version Control","Summary - Fire_E","AnnGenHiddenLists","Factor List","x-Series Number","x-216","x-217","x-218","x-219","x-220","x-221"],"not_rendered":{"charts":0,"images":0,"macros":1,"external_links":0,"defined_names":239,"comments":0,"pivot_tables":0},"unopened":[],"bounds":{"document_bytes":16777216,"sheet_cells":100000,"rows_first":2000,"rows_last":500,"rows_between":2000,"halvings":0,"cell_chars":16384,"cell_head_chars":4096},"cells_cut":0,"cells_raw":0,"read":"whole","date_system":"1900"}

{"sheet":"Cover","index":0,"n_rows":23,"n_cols":2,"rows_kept":23,"cut":false,"hidden":false,"merged":[]}
["Government Actuary's Department"]
["Fire_E - TVIN factors"]
["Cover"]
[{"$f":"CELL(\"filename\",A1)","v":"V:\\LGA\\Pensions\\Team\\Firefighters\\Fire Circulars and GAD Guidance\\GAD Guidance\\2019\\[Fire England TVins - January 2019.xlsm]Cover"}]
[]
[]
["Specification","This spreadsheet contains updated factors for the Firefighters' Pension Schemes in England."]
[]
[]
[]
["Sheet","Description"]
["Purpose of spreadsheet","This sheet sets out the purpose of the spreadsheet and includes caveats on the use of the spreadsheet."]
["Version Control ","This sheet is used to show which factor tables have been updated since the last issued version of the consolidated factor spreadsheet."]
["Summary - Fire_E","This sheet summaries the full suite of factors that are in force and the date when the factors were implemented."]
["Factor List","This sheet lists the full suite of factors that are in force together with the following information: "]
["x-101 and onwards","The 100 series factors contain the club transfer factors. Each different type of club transfer factor is set out on a separate sheet starting with sheet x-101, where x relates to the scheme section (if applicable)."]
["x-201 and onwards","The 200 series factors contain the non club transfer factors. Each different type of non club transfer factor is set out on a separate sheet starting with sheet x-201, where x relates to the scheme section (if applicable)."]
["x-301 and onwards","The 300 series factors contain the pension sharing on divorce factors. Each different type of pension sharing on divorce factor is set out on a separate sheet starting with sheet x-301, where x relates to the scheme section (if applicable)."]
["x-401 and onwards","The 400 series factors contain the early of late retirement factors. Each different type of early or late retirement factor is set out on a separate sheet starting with sheet x-401, where x relates to the scheme section (if applicable)."]
["x-501 and onwards","The 500 series factors contain the commutation factors. Each different type of commutation factor is set out on a separate sheet starting with sheet x-501, where x relates to the scheme section (if applicable)."]
["x-601 and onwards","The 600 series factors contain the scheme pays factors. Each different type of scheme pays factor is set out on a separate sheet starting with sheet x-601, where x relates to the scheme section (if applicable)."]
["x-701 and onwards","The 700 series factors contain the additional benefit or additional contribution factors. Each different type of additional benefit or additional contribution factor is set out on a separate sheet starting with sheet x-701, where x relates to the scheme section (if applicable)."]
["x-801 and onwards","The 800 series factors contain the other scheme specific factors. Each different type of other scheme specific factor is set out on a separate sheet starting with sheet x-801, where x relates to the scheme section (if applicable)."]

{"sheet":"Purpose of spreadsheet","index":1,"n_rows":9,"n_cols":1,"rows_kept":9,"cut":false,"hidden":false,"merged":[[6,0,6,12],[8,0,13,12]]}
["Government Actuary's Department"]
[{"$f":"IF(title=\"> Enter workbook title here\",\"Enter workbook title in Cover sheet\",title)","v":"Fire_E - TVIN factors"}]
["Purpose of Spreadsheet"]
[{"$f":"CELL(\"filename\",A1)","v":"V:\\LGA\\Pensions\\Team\\Firefighters\\Fire Circulars and GAD Guidance\\GAD Guidance\\2019\\[Fire England TVins - January 2019.xlsm]Purpose of spreadsheet"}]
[]
[]
["Purpose of the Home Office (\"HO\") Consolidated Factor Spreadsheet"]
[]
["This spreadsheet is provided by GAD at the request of the Home Office.  Its purpose is to set out in one place for convenience the actuarial factors provided by GAD to the Home Office from time to time in respect of Firefighters' Pension Schemes (England) and related schemes, and the dates on which these factors have been sent to the client.  It should not be used or relied on for any other purpose and GAD has no liability for any act or omission taken on the basis of this spreadsheet.  In particular, it does not constitute an instruction or manual for plan administration purposes, and it does not cover the implementation or backdating of factors other than to specify the factor implementation date (if provided by the Home Office).   \n\nGAD has no liability for any changes made to this spreadsheet whilst being used by the Home Office, FRAs or any other third party.\n\nThis spreadsheet should not be made available online without the express permission of GAD. \n\nThis spreadsheet is password protected. \n"]

{"sheet":"Version Control","index":2,"n_rows":17,"n_cols":3,"rows_kept":17,"cut":false,"hidden":false,"merged":[]}
["Government Actuary's Department"]
[{"$f":"IF(title=\"> Enter workbook title here\",\"Enter workbook title in Cover sheet\",title)","v":"Fire_E - TVIN factors"}]
["Version Control"]
[{"$f":"CELL(\"filename\",A1)","v":"V:\\LGA\\Pensions\\Team\\Firefighters\\Fire Circulars and GAD Guidance\\GAD Guidance\\2019\\[Fire England TVins - January 2019.xlsm]Version Control"}]
[]
["Version control"]
[]
["This sheet is intended to assist Home Office in understanding which factors have changed and when. "]
["Version control on this sheet commences with the 2017/18 factor review (version 2018-1)"]
[]
["Version 2018 - 1 (January 2019)"]
["Provides the following new factor tables:",null,"None"]
["Provides the following revised factors:",null,"x-220, x-221"]
["Confirms that the following factor table is no longer required by Home Office:",null,"x-216, x-217, x-218, x-219"]
["Factors still to follow:",null,"All other series"]
["Methodology changes:",null,"None - tables should be used with existing guidance notes as referenced"]
["Date modified:",null,"2019-01-24T11:10:00"]

{"sheet":"Summary - Fire_E","index":3,"n_rows":224,"n_cols":7,"rows_kept":224,"cut":false,"hidden":true,"merged":[]}
["Government Actuary's Department"]
[{"$f":"IF(title=\"> Enter workbook title here\",\"Enter workbook title in Cover sheet\",title)","v":"Fire_E - TVIN factors"}]
["Summary of Factors "]
[{"$f":"CELL(\"filename\",A1)","v":"V:\\LGA\\Pensions\\Team\\Firefighters\\Fire Circulars and GAD Guidance\\GAD Guidance\\2019\\[Fire England TVins - January 2019.xlsm]Summary - Fire_E"}]
[]
[]
[null,null,null,null,"x=0","x=1","x=2"]
[null,"Fire_E",null,null,2015,2006,1992]
[]
[null,"100 Series - Club Transfer"]
[null,"x-",101]
[null,"x-",102]
[null,"x-",103]
[null,"x-",104]
[null,"x-",105]
[null,"x-",106]
[null,"x-",107]
[null,"x-",108]
[null,"x-",109]
[null,"x-",110]
[null,"x-",111]
[null,"x-",112]
[null,"x-",113]
[null,"x-",114]
[null,"x-",115]
[null,"x-",116]
[null,"x-",117]
[null,"x-",118]
[null,"x-",119]
[null,"x-",120]
[null,"x-",121]
[null,"x-",122]
[null,"x-",123]
[null,"x-",124]
[null,"x-",125]
[]
[null,"200 Series - Non Club Transfers"]
[null,"x-",201]
[null,"x-",202]
[null,"x-",203]
[null,"x-",204]
[null,"x-",205]
[null,"x-",206]
[null,"x-",207]
[null,"x-",208]
[null,"x-",209]
[null,"x-",210]
[null,"x-",211]
[null,"x-",212]
[null,"x-",213]
[null,"x-",214]
[null,"x-",215]
[null,"x-",216]
[null,"x-",217]
[null,"x-",218]
[null,"x-",219]
[null,"x-",220]
[null,"x-",221]
[null,"x-",222]
[null,"x-",223]
[null,"x-",224]
[null,"x-",225]
[]
[null,"300 Series - Pension Sharing on divorce"]
[null,"x-",301]
[null,"x-",302]
[null,"x-",303]
[null,"x-",304]
[null,"x-",305]
[null,"x-",306]
[null,"x-",307]
[null,"x-",308]
[null,"x-",309]
[null,"x-",310]
[null,"x-",311]
[null,"x-",312]
[null,"x-",313]
[null,"x-",314]
[null,"x-",315]
[null,"x-",316]
[null,"x-",317]
[null,"x-",318]
[null,"x-",319]
[null,"x-",320]
[null,"x-",321]
[null,"x-",322]
[null,"x-",323]
[null,"x-",324]
[null,"x-",325]
[]
[null,"400 Series - Early or Late Retirement"]
[null,"x-",401]
[null,"x-",402]
[null,"x-",403]
[null,"x-",404]
[null,"x-",405]
[null,"x-",406]
[null,"x-",407]
[null,"x-",408]
[null,"x-",409]
[null,"x-",410]
[null,"x-",411]
[null,"x-",412]
[null,"x-",413]
[null,"x-",414]
[null,"x-",415]
[null,"x-",416]
[null,"x-",417]
[null,"x-",418]
[null,"x-",419]
[null,"x-",420]
[null,"x-",421]
[null,"x-",422]
[null,"x-",423]
[null,"x-",424]
[null,"x-",425]
[]
[null,"500 Series - Commutation"]
[null,"x-",501]
[null,"x-",502]
[null,"x-",503]
[null,"x-",504]
[null,"x-",505]
[null,"x-",506]
[null,"x-",507]
[null,"x-",508]
[null,"x-",509]
[null,"x-",510]
[null,"x-",511]
[null,"x-",512]
[null,"x-",513]
[null,"x-",514]
[null,"x-",515]
[null,"x-",516]
[null,"x-",517]
[null,"x-",518]
[null,"x-",519]
[null,"x-",520]
[null,"x-",521]
[null,"x-",522]
[null,"x-",523]
[null,"x-",524]
[null,"x-",525]
[]
[null,"600 Series - Scheme Pays"]
[null,"x-",601]
[null,"x-",602]
[null,"x-",603]
[null,"x-",604]
[null,"x-",605]
[null,"x-",606]
[null,"x-",607]
[null,"x-",608]
[null,"x-",609]
[null,"x-",610]
[null,"x-",611]
[null,"x-",612]
[null,"x-",613]
[null,"x-",614]
[null,"x-",615]
[null,"x-",616]
[null,"x-",617]
[null,"x-",618]
[null,"x-",619]
[null,"x-",620]
[null,"x-",621]
[null,"x-",622]
[null,"x-",623]
[null,"x-",624]
[null,"x-",625]
[]
[null,"700 Series - Additional Benefits or Additional Contributions"]
[null,"x-",701]
[null,"x-",702]
[null,"x-",703]
[null,"x-",704]
[null,"x-",705]
[null,"x-",706]
[null,"x-",707]
[null,"x-",708]
[null,"x-",709]
[null,"x-",710]
[null,"x-",711]
[null,"x-",712]
[null,"x-",713]
[null,"x-",714]
[null,"x-",715]
[null,"x-",716]
[null,"x-",717]
[null,"x-",718]
[null,"x-",719]
[null,"x-",720]
[null,"x-",721]
[null,"x-",722]
[null,"x-",723]
[null,"x-",724]
[null,"x-",725]
[]
[null,"800 Series - Other Scheme Specific"]
[null,"x-",801]
[null,"x-",802]
[null,"x-",803]
[null,"x-",804]
[null,"x-",805]
[null,"x-",806]
[null,"x-",807]
[null,"x-",808]
[null,"x-",809]
[null,"x-",810]
[null,"x-",811]
[null,"x-",812]
[null,"x-",813]
[null,"x-",814]
[null,"x-",815]
[null,"x-",816]
[null,"x-",817]
[null,"x-",818]
[null,"x-",819]
[null,"x-",820]
[null,"x-",821]
[null,"x-",822]
[null,"x-",823]
[null,"x-",824]
[null,"x-",825]

{"sheet":"AnnGenHiddenLists","index":4,"n_rows":160,"n_cols":3,"rows_kept":160,"cut":false,"hidden":true,"merged":[]}
["DO NOT REMOVE WORKSHEET"]
[]
["BaseTablesList",null,"ImprovementsList"]
["PCFA00",null,"CMI2016F-07-1pt5"]
["PCMA00",null,"CMI2016M-07-1pt5"]
["PFA80",null,"Long Cohort"]
["PFA92",null,"Medium Cohort"]
["PFA92 - 08",null,"PFA80imp"]
["PFA92-10",null,"PFA92"]
["PMA80",null,"PMA80imp"]
["PMA92",null,"PMA92"]
["PMA92 - 08",null,"Short Cohort"]
["PMA92-10",null,"SMPI-2018imp"]
["PNFA00",null,"UKF2004imp"]
["PNFA00-06",null,"UKF2006imp"]
["PNFA00-08",null,"UKF2006imp_HLE"]
["PNFA00-10",null,"UKF2006imp_LLE"]
["PNMA00",null,"UKF2008imp"]
["PNMA00-06",null,"UKF2010imp"]
["PNMA00-08",null,"UKF2012imp"]
["PNMA00-10",null,"UKF2014imp"]
["S1DFA",null,"UKf2016HLEimp"]
["S1DFA-06",null,"UKF2016imp"]
["S1DFA-08",null,"UKf2016LLEimp"]
["S1DFA-10",null,"UKM2004imp"]
["S1DFA-12",null,"UKM2006imp"]
["S1DFA-14",null,"UKM2006imp_HLE"]
["S1DFA-16",null,"UKM2006imp_LLE"]
["S1DFA-L",null,"UKM2008imp"]
["S1DFA-L-06",null,"UKM2010imp"]
["S1DFA-L-08",null,"UKM2012imp"]
["S1DFA-L-10",null,"UKM2014imp"]
["S1DFA-L-12",null,"UKm2016HLEimp"]
["S1IFA",null,"UKM2016imp"]
["S1IFA-06",null,"UKm2016LLEimp"]
["S1IFA-08",null,"None"]
["S1IFA-10"]
["S1IFA-12"]
["S1IFA-14"]
["S1IFA-16"]
["S1IFA-STSS-16"]
["S1IFA-TPS-16"]
["S1IMA"]
["S1IMA-06"]
["S1IMA-08"]
["S1IMA-10"]
["S1IMA-12"]
["S1IMA-14"]
["S1IMA-16"]
["S1IMA-STSS-16"]
["S1IMA-TPS-16"]
["S1NFA"]
["S1NFA-06"]
["S1NFA-08"]
["S1NFA-10"]
["S1NFA-12"]
["S1NFA-14"]
["S1NFA-16"]
["S1NFA-L"]
["S1NFA-L-06"]
["S1NFA-L-08"]
["S1NFA-L-10"]
["S1NFA-L-12"]
["S1NFA-L-14"]
["S1NFA-L-16"]
["S1NFA-L-STSS"]
["S1NFA-L-STSS-06"]
["S1NFA-L-STSS-08"]
["S1NFA-L-STSS-10"]
["S1NFA-L-STSS-12"]
["S1NFA-L-STSS-14"]
["S1NFA-L-STSS-16"]
["S1NFA-L-TPS"]
["S1NFA-L-TPS-06"]
["S1NFA-L-TPS-08"]
["S1NFA-L-TPS-10"]
["S1NFA-L-TPS-12"]
["S1NFA-L-TPS-14"]
["S1NFA-L-TPS-16"]
["S1NMA"]
["S1NMA-06"]
["S1NMA-08"]
["S1NMA-10"]
["S1NMA-12"]
["S1NMA-14"]
["S1NMA-16"]
["S1NMA-L"]
["S1NMA-L-06"]
["S1NMA-L-08"]
["S1NMA-L-10"]
["S1NMA-L-12"]
["S1NMA-L-14"]
["S1NMA-L-16"]
["S1PFA"]
["S1PFA-06"]
["S1PFA-08"]
["S1PFA-10"]
["S1PFA-12"]
["S1PFA-14"]
["S1PFA-16"]
["S1PMA"]
["S1PMA-06"]
["S1PMA-08"]
["S1PMA-10"]
["S1PMA-12"]
["S1PMA-14"]
["S1PMA-16"]
["S2DFA"]
["S2DFA-12"]
["S2DFA-14"]
["S2DFA-16"]
["S2DFL"]
["S2DFL-12"]
["S2DFL-16"]
["S2IFA"]
["S2IFA-12"]
["S2IFA-14"]
["S2IFA-16"]
["S2IMA"]
["S2IMA-12"]
["S2IMA-14"]
["S2IMA-16"]
["S2NFA"]
["S2NFA-12"]
["S2NFA-14"]
["S2NFA-16"]
["S2NFA-CMI"]
["S2NMA"]
["S2NMA_L-16"]
["S2NMA-12 "]
["S2NMA-14"]
["S2NMA-16"]
["S2NMA-CMI"]
["S2PFA"]
["S2PFA-12"]
["S2PFA-14"]
["S2PFA-16"]
["S2PFL"]
["S2PFL-12"]
["S2PFL-16"]
["S2PMA"]
["S2PMA-12"]
["S2PMA-14"]
["S2PMA-16"]
["S2PML"]
["S2PML-12"]
["S2PML-16"]
["SMPI-2018"]
["UKF"]
["UKF2004"]
["UKF2006"]
["UKF2008"]
["UKF2010"]
["UKF2012"]
["UKM"]
["UKM2004"]
["UKM2006"]
["UKM2008"]
["UKM2010"]
["UKM2012"]

{"sheet":"Factor List","index":5,"n_rows":14,"n_cols":18,"rows_kept":14,"cut":false,"hidden":false,"merged":[[8,11,8,13],[9,11,9,13],[10,11,10,13],[11,11,11,13]]}
["Government Actuary's Department"]
[{"$f":"IF(title=\"> Enter workbook title here\",\"Enter workbook title in Cover sheet\",title)","v":"Fire_E - TVIN factors"}]
["Factor List"]
[{"$f":"CELL(\"filename\",A1)","v":"V:\\LGA\\Pensions\\Team\\Firefighters\\Fire Circulars and GAD Guidance\\GAD Guidance\\2019\\[Fire England TVins - January 2019.xlsm]Factor List"}]
[]
[]
["Client","Section","Factor Type","Description","Gender","Factor Age/Period Definition","Section Number (x)","Series Number","Table Reference\n(Section-Series Number)","Table Reference in Guidance","Related Factor Guidance","Date Factors Issued to Client","Date Factors Implemented (if known)","Factor Status","Table ID","Source","UserID","Time Stamp"]
["see sheet \"x-Series Number\" for description of entry","see sheet \"x-Series Number\" for description of entry","see sheet \"x-Series Number\" for description of entry","see sheet \"x-Series Number\" for description of entry","see sheet \"x-Series Number\" for description of entry","see sheet \"x-Series Number\" for description of entry","see sheet \"x-Series Number\" for description of entry","see sheet \"x-Series Number\" for description of entry","see sheet \"x-Series Number\" for description of entry","see sheet \"x-Series Number\" for description of entry","see sheet \"x-Series Number\" for description of entry","see sheet \"x-Series Number\" for description of entry","see sheet \"x-Series Number\" for description of entry","see sheet \"x-Series Number\" for description of entry"]
["Fire_E",2006,"TV In (non-club)","Statutory CETV incoming transfer service credit factors","Male","Age last birthday at relevant date",1,216,"x-216","Table C1","New Firefighters’ Pension Scheme (2006)\nNew Firefighters’ Pension Sheme (Northern Ireland) 2007\nFirefighters’ Pension Scheme (Scotland) 2007\nFirefighters’ Pension Scheme (Wales) 2007 \nFactors and Example Calculations for Service Credits for non-Club Incoming Transfers\nDated 12 December 2012","Discontinued - factors will now be produced on a case-by-case basis",null,null,"FIRE_E_x-216","L:\\Factors\\2017\\FIRE\\Client output\\Tranche 2_2.4%\\FIRE_E_CETV bespoke outputs - A + B - C T0.03 - Tranche 2 - 2.4%.xlsm","Thannima","2018-11-26T10:28:25"]
["Fire_E",2006,"TV In (non-club)","Statutory CETV incoming transfer service credit factors","Female","Age last birthday at relevant date",1,217,"x-217","Table C2","New Firefighters’ Pension Scheme (2006)\nNew Firefighters’ Pension Sheme (Northern Ireland) 2007\nFirefighters’ Pension Scheme (Scotland) 2007\nFirefighters’ Pension Scheme (Wales) 2007 \nFactors and Example Calculations for Service Credits for non-Club Incoming Transfers\nDated 12 December 2012","Discontinued - factors will now be produced on a case-by-case basis",null,null,"FIRE_E_x-217","L:\\Factors\\2017\\FIRE\\Client output\\Tranche 2_2.4%\\FIRE_E_CETV bespoke outputs - A + B - C T0.03 - Tranche 2 - 2.4%.xlsm","Thannima","2018-11-26T10:28:25"]
["Fire_E",2006,"TV In (non-club)","Statutory CETV incoming transfer service credit factors - Special members","Male","Age last birthday at relevant date",1,218,"x-218","Table C3","New Firefighters’ Pension Scheme (2006)\nNew Firefighters’ Pension Sheme (Northern Ireland) 2007\nFirefighters’ Pension Scheme (Scotland) 2007\nFirefighters’ Pension Scheme (Wales) 2007 \nFactors and Example Calculations for Service Credits for non-Club Incoming Transfers\nDated 12 December 2012","Discontinued - factors will now be produced on a case-by-case basis",null,null,"FIRE_E_x-218","L:\\Factors\\2017\\FIRE\\Client output\\Tranche 2_2.4%\\FIRE_E_CETV bespoke outputs - A + B - C T0.03 - Tranche 2 - 2.4%.xlsm","Thannima","2018-11-26T10:28:25"]
["Fire_E",2006,"TV In (non-club)","Statutory CETV incoming transfer service credit factors - Special members","Female","Age last birthday at relevant date",1,219,"x-219","Table C4","New Firefighters’ Pension Scheme (2006)\nNew Firefighters’ Pension Sheme (Northern Ireland) 2007\nFirefighters’ Pension Scheme (Scotland) 2007\nFirefighters’ Pension Scheme (Wales) 2007 \nFactors and Example Calculations for Service Credits for non-Club Incoming Transfers\nDated 12 December 2012","Discontinued - factors will now be produced on a case-by-case basis",null,null,"FIRE_E_x-219","L:\\Factors\\2017\\FIRE\\Client output\\Tranche 2_2.4%\\FIRE_E_CETV bespoke outputs - A + B - C T0.03 - Tranche 2 - 2.4%.xlsm","Thannima","2018-11-26T10:28:25"]
["Fire_E",2015,"TV In (non-club)","Factors for non-club transfers - in based on NPA60","Male","Age last birthday at relevant date",0,220,"x-220","Table NM60","The Firefighters’ Pension Scheme 2015 (England)\nActuarial Factors for Individual Cash Equivalent Transfers from 1 April 2015\nDated 17 April 2015","2019-01-24",null,"Issued","FIRE_E_x-220","L:\\Factors\\2017\\FIRE\\Client output\\Tranche 2_2.4%\\FIRE_E_CETV bespoke outputs - A + B - C T0.03 - Tranche 2 - 2.4%.xlsm","Thannima","2018-11-26T10:28:25"]
["Fire_E",2015,"TV In (non-club)","Factors for non-club transfers - in based on NPA60","Female","Age last birthday at relevant date",0,221,"x-221","Table NF60","The Firefighters’ Pension Scheme 2015 (England)\nActuarial Factors for Individual Cash Equivalent Transfers from 1 April 2015\nDated 17 April 2015","2019-01-24",null,"Issued","FIRE_E_x-221","L:\\Factors\\2017\\FIRE\\Client output\\Tranche 2_2.4%\\FIRE_E_CETV bespoke outputs - A + B - C T0.03 - Tranche 2 - 2.4%.xlsm","Thannima","2018-11-26T10:28:25"]

{"sheet":"x-Series Number","index":6,"n_rows":25,"n_cols":2,"rows_kept":25,"cut":false,"hidden":true,"merged":[]}
["Government Actuary's Department"]
[{"$f":"IF(title=\"> Enter workbook title here\",\"Enter workbook title in Cover sheet\",title)","v":"Fire_E - TVIN factors"}]
[{"$f":"TABLE_FACTOR_TYPE&\" - x-\"&TABLE_SERIES_NUMBER","v":"Enter the factor type (which should be consistent with the series header types found on the summary sheet (eg early or late retirement) - x-Enter series number (this reflects the number in the relevant series eg if it’s the first ER/LR factor then it would be \"401\")"}]
[{"$f":"CELL(\"filename\",A1)","v":"V:\\LGA\\Pensions\\Team\\Firefighters\\Fire Circulars and GAD Guidance\\GAD Guidance\\2019\\[Fire England TVins - January 2019.xlsm]x-Series Number"}]
[]
["Data Item","Factor Table Information"]
["Client","Enter the client name eg NHSPS_EW"]
["Section","Enter the section name eg NHSPS 2015"]
["Factor Type","Enter the factor type (which should be consistent with the series header types found on the summary sheet (eg early or late retirement)"]
["Description","Enter a description of the factor (eg use description from factor table in guidance)"]
["Gender","Enter either \"unisex\" or \"m and f\""]
["Factor Age/Period Definition","Enter in age definition"]
["Section Number","Enter section number (this relates to the number used to identify the scheme section - see top of summary tab for section number)"]
["Series Number","Enter series number (this reflects the number in the relevant series eg if it’s the first ER/LR factor then it would be \"401\")"]
["Table Reference","Enter table number (this is the section number plus the series number so we can identify the section and factor type eg if the section number for NHSPS 2015 was 0 and the factor was the first in the ER/LR factor series then this would be \"0-401\" entered here."]
["Table Reference in Guidance","Enter the table reference from the guidance notes"]
["Related Factor Table Reference (where the factor uses the same table as another factor in this spreadsheet)","If the factor table on this sheet is the same as another factor in the spreadsheet. Then enter that table reference here eg 0-.201. If this factor table is unique then put \"n/a\"."]
["Date Factors Issued to Client","Enter the date the factors are issued to the client"]
["Date Factors Implemented (if known)","Enter the date the factors are implemented "]
["Factor Status","Enter whether table is inforce, withdrawn, refer to gad etc"]
[]
[]
[]
[]
["Copy the relevant factor table and foot notes here. Unisex or male factor table in this grey box."]

{"sheet":"x-216","index":7,"n_rows":20,"n_cols":2,"rows_kept":20,"cut":false,"hidden":false,"merged":[[16,1,16,4],[17,1,19,4]]}
["Government Actuary's Department"]
[{"$f":"IF(title=\"> Enter workbook title here\",\"Enter workbook title in Cover sheet\",title)","v":"Fire_E - TVIN factors"}]
[{"$f":"TABLE_FACTOR_TYPE&\" - x-\"&TABLE_SERIES_NUMBER","v":"TV In (non-club) - x-216"}]
[{"$f":"CELL(\"filename\",A1)","v":"V:\\LGA\\Pensions\\Team\\Firefighters\\Fire Circulars and GAD Guidance\\GAD Guidance\\2019\\[Fire England TVins - January 2019.xlsm]x-216"}]
[]
["Data Item","Factor Table Information"]
["Client","Fire_E"]
["Section",2006]
["Factor Type","TV In (non-club)"]
["Description","Statutory CETV incoming transfer service credit factors"]
["Gender","Male"]
["Factor Age/Period Definition","Age last birthday at relevant date"]
["Section Number",1]
["Series Number",216]
["Table Reference","x-216"]
["Table Reference in Guidance","Table C1"]
["Related Factor Guidance","New Firefighters’ Pension Scheme (2006)\nNew Firefighters’ Pension Sheme (Northern Ireland) 2007\nFirefighters’ Pension Scheme (Scotland) 2007\nFirefighters’ Pension Scheme (Wales) 2007 \nFactors and Example Calculations for Service Credits for non-Club Incoming Transfers\nDated 12 December 2012"]
["Date Factors Issued to Client","Discontinued - factors will now be produced on a case-by-case basis. \nPlease contact the Home Office if a factor is required."]
["Date Factors Implemented (if known)"]
["Factor Status"]

{"sheet":"x-217","index":8,"n_rows":20,"n_cols":2,"rows_kept":20,"cut":false,"hidden":false,"merged":[[16,1,16,4],[17,1,19,4]]}
["Government Actuary's Department"]
[{"$f":"IF(title=\"> Enter workbook title here\",\"Enter workbook title in Cover sheet\",title)","v":"Fire_E - TVIN factors"}]
[{"$f":"TABLE_FACTOR_TYPE&\" - x-\"&TABLE_SERIES_NUMBER","v":"TV In (non-club) - x-217"}]
[{"$f":"CELL(\"filename\",A1)","v":"V:\\LGA\\Pensions\\Team\\Firefighters\\Fire Circulars and GAD Guidance\\GAD Guidance\\2019\\[Fire England TVins - January 2019.xlsm]x-217"}]
[]
["Data Item","Factor Table Information"]
["Client","Fire_E"]
["Section",2006]
["Factor Type","TV In (non-club)"]
["Description","Statutory CETV incoming transfer service credit factors"]
["Gender","Female"]
["Factor Age/Period Definition","Age last birthday at relevant date"]
["Section Number",1]
["Series Number",217]
["Table Reference","x-217"]
["Table Reference in Guidance","Table C2"]
["Related Factor Guidance","New Firefighters’ Pension Scheme (2006)\nNew Firefighters’ Pension Sheme (Northern Ireland) 2007\nFirefighters’ Pension Scheme (Scotland) 2007\nFirefighters’ Pension Scheme (Wales) 2007 \nFactors and Example Calculations for Service Credits for non-Club Incoming Transfers\nDated 12 December 2012"]
["Date Factors Issued to Client","Discontinued - factors will now be produced on a case-by-case basis. \nPlease contact the Home Office if a factor is required."]
["Date Factors Implemented (if known)"]
["Factor Status"]

{"sheet":"x-218","index":9,"n_rows":20,"n_cols":2,"rows_kept":20,"cut":false,"hidden":false,"merged":[[16,1,16,4],[17,1,19,4]]}
["Government Actuary's Department"]
[{"$f":"IF(title=\"> Enter workbook title here\",\"Enter workbook title in Cover sheet\",title)","v":"Fire_E - TVIN factors"}]
[{"$f":"TABLE_FACTOR_TYPE&\" - x-\"&TABLE_SERIES_NUMBER","v":"TV In (non-club) - x-218"}]
[{"$f":"CELL(\"filename\",A1)","v":"V:\\LGA\\Pensions\\Team\\Firefighters\\Fire Circulars and GAD Guidance\\GAD Guidance\\2019\\[Fire England TVins - January 2019.xlsm]x-218"}]
[]
["Data Item","Factor Table Information"]
["Client","Fire_E"]
["Section",2006]
["Factor Type","TV In (non-club)"]
["Description","Statutory CETV incoming transfer service credit factors - Special members"]
["Gender","Male"]
["Factor Age/Period Definition","Age last birthday at relevant date"]
["Section Number",1]
["Series Number",218]
["Table Reference","x-218"]
["Table Reference in Guidance","Table C3"]
["Related Factor Guidance","New Firefighters’ Pension Scheme (2006)\nNew Firefighters’ Pension Sheme (Northern Ireland) 2007\nFirefighters’ Pension Scheme (Scotland) 2007\nFirefighters’ Pension Scheme (Wales) 2007 \nFactors and Example Calculations for Service Credits for non-Club Incoming Transfers\nDated 12 December 2012"]
["Date Factors Issued to Client","Discontinued - factors will now be produced on a case-by-case basis. \nPlease contact the Home Office if a factor is required."]
["Date Factors Implemented (if known)"]
["Factor Status"]

{"sheet":"x-219","index":10,"n_rows":20,"n_cols":2,"rows_kept":20,"cut":false,"hidden":false,"merged":[[16,1,16,4],[17,1,19,4]]}
["Government Actuary's Department"]
[{"$f":"IF(title=\"> Enter workbook title here\",\"Enter workbook title in Cover sheet\",title)","v":"Fire_E - TVIN factors"}]
[{"$f":"TABLE_FACTOR_TYPE&\" - x-\"&TABLE_SERIES_NUMBER","v":"TV In (non-club) - x-219"}]
[{"$f":"CELL(\"filename\",A1)","v":"V:\\LGA\\Pensions\\Team\\Firefighters\\Fire Circulars and GAD Guidance\\GAD Guidance\\2019\\[Fire England TVins - January 2019.xlsm]x-219"}]
[]
["Data Item","Factor Table Information"]
["Client","Fire_E"]
["Section",2006]
["Factor Type","TV In (non-club)"]
["Description","Statutory CETV incoming transfer service credit factors - Special members"]
["Gender","Female"]
["Factor Age/Period Definition","Age last birthday at relevant date"]
["Section Number",1]
["Series Number",219]
["Table Reference","x-219"]
["Table Reference in Guidance","Table C4"]
["Related Factor Guidance","New Firefighters’ Pension Scheme (2006)\nNew Firefighters’ Pension Sheme (Northern Ireland) 2007\nFirefighters’ Pension Scheme (Scotland) 2007\nFirefighters’ Pension Scheme (Wales) 2007 \nFactors and Example Calculations for Service Credits for non-Club Incoming Transfers\nDated 12 December 2012"]
["Date Factors Issued to Client","Discontinued - factors will now be produced on a case-by-case basis. \nPlease contact the Home Office if a factor is required."]
["Date Factors Implemented (if known)"]
["Factor Status"]

{"sheet":"x-220","index":11,"n_rows":67,"n_cols":5,"rows_kept":67,"cut":false,"hidden":false,"merged":[[16,1,16,4]]}
["Government Actuary's Department"]
[{"$f":"IF(title=\"> Enter workbook title here\",\"Enter workbook title in Cover sheet\",title)","v":"Fire_E - TVIN factors"}]
[{"$f":"TABLE_FACTOR_TYPE&\" - x-\"&TABLE_SERIES_NUMBER","v":"TV In (non-club) - x-220"}]
[{"$f":"CELL(\"filename\",A1)","v":"V:\\LGA\\Pensions\\Team\\Firefighters\\Fire Circulars and GAD Guidance\\GAD Guidance\\2019\\[Fire England TVins - January 2019.xlsm]x-220"}]
[]
["Data Item","Factor Table Information"]
["Client","Fire_E"]
["Section",2015]
["Factor Type","TV In (non-club)"]
["Description","Factors for non-club transfers - in based on NPA60"]
["Gender","Male"]
["Factor Age/Period Definition","Age last birthday at relevant date"]
["Section Number",0]
["Series Number",220]
["Table Reference","x-220"]
["Table Reference in Guidance","Table NM60"]
["Related Factor Guidance","The Firefighters’ Pension Scheme 2015 (England)\nActuarial Factors for Individual Cash Equivalent Transfers from 1 April 2015\nDated 17 April 2015"]
["Date Factors Issued to Client","2019-01-24"]
["Date Factors Implemented (if known)"]
["Factor Status","Issued"]
[]
[]
[]
[]
["Age","Gross pension of £1 pa","Surviving Partner's Penions of £1 pa","Adjustment for GMP of £1 pa - Pre 88","Adjustment for GMP of £1 pa - Post 88"]
[18,19.649999999999999,3.59,3.1,0.47]
[19,19.64,3.6,3.11,0.47]
[20,19.64,3.61,3.11,0.47]
[21,19.649999999999999,3.62,3.12,0.47]
[22,19.64,3.64,3.13,0.47]
[23,19.64,3.65,3.14,0.47]
[24,19.64,3.66,3.15,0.47]
[25,19.63,3.67,3.16,0.47]
[26,19.63,3.68,3.17,0.48]
[27,19.62,3.7,3.18,0.48]
[28,19.62,3.71,3.19,0.48]
[29,19.61,3.72,3.2,0.48]
[30,19.61,3.74,3.21,0.48]
[31,19.61,3.75,3.22,0.48]
[32,19.600000000000001,3.76,3.23,0.48]
[33,19.600000000000001,3.78,3.24,0.49]
[34,19.59,3.79,3.25,0.49]
[35,19.59,3.8,3.26,0.49]
[36,19.579999999999998,3.82,3.27,0.49]
[37,19.559999999999999,3.83,3.28,0.49]
[38,19.559999999999999,3.84,3.29,0.49]
[39,19.55,3.86,3.3,0.5]
[40,19.55,3.87,3.31,0.5]
[41,19.53,3.88,3.32,0.5]
[42,19.53,3.89,3.33,0.5]
[43,19.52,3.9,3.35,0.5]
[44,19.52,3.92,3.36,0.5]
[45,19.510000000000002,3.92,3.37,0.51]
[46,19.510000000000002,3.92,3.38,0.51]
[47,19.489999999999998,3.93,3.39,0.51]
[48,19.489999999999998,3.93,3.41,0.51]
[49,19.489999999999998,3.93,3.42,0.51]
[50,19.489999999999998,3.93,3.43,0.51]
[51,19.489999999999998,3.92,3.44,0.52]
[52,19.5,3.91,3.46,0.52]
[53,19.5,3.9,3.47,0.52]
[54,19.52,3.88,3.49,0.52]
[55,19.53,3.87,3.5,0.53]
[56,19.559999999999999,3.85,3.52,0.53]
[57,19.59,3.82,3.54,0.53]
[58,19.63,3.79,3.56,0.53]
[59,19.68,3.76,3.58,0.54]

{"sheet":"x-221","index":12,"n_rows":67,"n_cols":5,"rows_kept":67,"cut":false,"hidden":false,"merged":[[16,1,16,4]]}
["Government Actuary's Department"]
[{"$f":"IF(title=\"> Enter workbook title here\",\"Enter workbook title in Cover sheet\",title)","v":"Fire_E - TVIN factors"}]
[{"$f":"TABLE_FACTOR_TYPE&\" - x-\"&TABLE_SERIES_NUMBER","v":"TV In (non-club) - x-221"}]
[{"$f":"CELL(\"filename\",A1)","v":"V:\\LGA\\Pensions\\Team\\Firefighters\\Fire Circulars and GAD Guidance\\GAD Guidance\\2019\\[Fire England TVins - January 2019.xlsm]x-221"}]
[]
["Data Item","Factor Table Information"]
["Client","Fire_E"]
["Section",2015]
["Factor Type","TV In (non-club)"]
["Description","Factors for non-club transfers - in based on NPA60"]
["Gender","Female"]
["Factor Age/Period Definition","Age last birthday at relevant date"]
["Section Number",0]
["Series Number",221]
["Table Reference","x-221"]
["Table Reference in Guidance","Table NF60"]
["Related Factor Guidance","The Firefighters’ Pension Scheme 2015 (England)\nActuarial Factors for Individual Cash Equivalent Transfers from 1 April 2015\nDated 17 April 2015"]
["Date Factors Issued to Client","2019-01-24"]
["Date Factors Implemented (if known)"]
["Factor Status","Issued"]
[]
[]
[]
[]
["Age","Gross pension of £1 pa","Surviving Partner's Penions of £1 pa","Adjustment for GMP of £1 pa - Pre 88","Adjustment for GMP of £1 pa - Post 88"]
[18,19.649999999999999,3.59,2.6,0.39]
[19,19.64,3.6,2.61,0.39]
[20,19.64,3.61,2.61,0.39]
[21,19.649999999999999,3.62,2.62,0.39]
[22,19.64,3.64,2.63,0.39]
[23,19.64,3.65,2.64,0.4]
[24,19.64,3.66,2.64,0.4]
[25,19.63,3.67,2.65,0.4]
[26,19.63,3.68,2.66,0.4]
[27,19.62,3.7,2.67,0.4]
[28,19.62,3.71,2.67,0.4]
[29,19.61,3.72,2.68,0.4]
[30,19.61,3.74,2.69,0.4]
[31,19.61,3.75,2.7,0.41]
[32,19.600000000000001,3.76,2.7,0.41]
[33,19.600000000000001,3.78,2.71,0.41]
[34,19.59,3.79,2.72,0.41]
[35,19.59,3.8,2.73,0.41]
[36,19.579999999999998,3.82,2.74,0.41]
[37,19.559999999999999,3.83,2.74,0.41]
[38,19.559999999999999,3.84,2.75,0.41]
[39,19.55,3.86,2.76,0.41]
[40,19.55,3.87,2.77,0.42]
[41,19.53,3.88,2.78,0.42]
[42,19.53,3.89,2.79,0.42]
[43,19.52,3.9,2.79,0.42]
[44,19.52,3.92,2.8,0.42]
[45,19.510000000000002,3.92,2.81,0.42]
[46,19.510000000000002,3.92,2.82,0.42]
[47,19.489999999999998,3.93,2.83,0.42]
[48,19.489999999999998,3.93,2.84,0.43]
[49,19.489999999999998,3.93,2.85,0.43]
[50,19.489999999999998,3.93,2.86,0.43]
[51,19.489999999999998,3.92,2.87,0.43]
[52,19.5,3.91,2.88,0.43]
[53,19.5,3.9,2.9,0.44]
[54,19.52,3.88,2.91,0.44]
[55,19.53,3.87,2.92,0.44]
[56,19.559999999999999,3.85,2.94,0.44]
[57,19.59,3.82,2.95,0.44]
[58,19.63,3.79,2.97,0.45]
[59,19.68,3.76,3.05,0.46]